[Event "CCT Julius Baer-D1-Place 2024"]
[Site "Online"]
[Date "2024.09.26"]
[Round "1.2"]
[White "Anton Guijarro, David"]
[Black "Le, Tuan Minh"]
[Result "0-1"]
[ECO "C64"]
[WhiteElo "2665"]
[BlackElo "2564"]
[Annotator "TA"]
[PlyCount "100"]
[EventDate "2024.09.25"]
[EventType "swiss"]
[EventCountry "NET"]
[SourceTitle "playchess.com"]
[Source "ChessBase"]
[SourceQuality "1"]
[TimeControl "600+2"]

{[%evp 24,100,22,23,27,23,34,0,0,0,3,-26,0,0,0,0,0,0,0,0,9,0,0,3,0,-27,-52,-73,-75,-72,-78,-186,-186,-230,-80,-100,-99,-148,-80,-107,-102,-93,-55,-60,-54,-74,-21,-22,-14,-14,-14,-14,-14,-14,-14,-14,-14,-1109,0,-835,-800,-709,0,0,0,-80,-95,-95,-95,-80,-80,-10599,-9418,-11890,-11760,-29980,-29981,-29981,-29982]} 1. e4 {[%emt 0:00:02]} e5 {[%emt 0:00:04]} 2. Nf3 {[%emt 0:00:02]} Nc6 {[%emt 0:00:00]} 3. Bb5 {[%emt 0:00:03]} a6 {[%emt 0:00:01]} 4. Ba4 {[%emt 0:00:02]} Bc5 {[%emt 0:00:01]} 5. c3 {[%emt 0:00:11]} Nge7 {[%emt 0:00:02]} 6. O-O {[%emt 0:00:04]} Ng6 {[%emt 0:00:04] 6...Ba7 is the recent fashion. C64: Ruy Lopez: Classical Defence (3...Bc5) except 4 0-0 Nf6.} 7. d4 {[%emt 0:00:02]} Ba7 {[%emt 0:00:01]} 8. Bxc6 {[%emt 0:00:03]} dxc6 {[%emt 0:00:01]} 9. Nxe5 {[%emt 0:00:01]} Nxe5 {[%emt 0:00:02]} 10. dxe5 {[%emt 0:00:00]} Qe7 {[%emt 0:00:00]} 11. Qf3 {[%emt 0:00:01]} Qxe5 {[%emt 0:00:02]} 12. Bf4 {[%emt 0:00:03]} Qe7 {[%emt 0:00:00]} 13. Qg3 {[%emt 0:00:05]} O-O $146 {[%emt 0:00:01]} ({Predecessor:} 13... Be6 14. Bxc7 f6 15. Nd2 h5 16. Nf3 g5 17. Nd4 h4 18. Qd6 Qxd6 19. Bxd6 Kf7 {0-1 Vachier Lagrave,M (2721)-Nakamura,H (2802) Saint Louis Blitz 2024 (10)}) 14. Nd2 {[%emt 0:00:03]} Bb6 {[%emt 0:00:01]} 15. Rae1 {[%emt 0:00:09]} Be6 {[%emt 0:00:04]} 16. e5 {[%emt 0:00:03]} Bf5 {[%emt 0:00:34]} 17. Ne4 {[%emt 0:00:22]} Bxe4 {[%emt 0:00:15]} 18. Rxe4 {[%emt 0:00:00]} Qe6 {[%emt 0:00:01]} 19. Rfe1 {[%emt 0:00:06]} Rad8 {[%emt 0:00:19]} 20. h4 {[%emt 0:00:29]} h6 {[%emt 0:00:11]} 21. Bc1 {[%emt 0:00:37]} f5 {[%emt 0:00:50]} 22. exf6 {[%emt 0:00:16]} Qxf6 {[%emt 0:00:01]} 23. Rf4 {[%emt 0:01:53]} Qd6 {[%emt 0:00:02]} 24. Kf1 {[%emt 0:00:10]} Rfe8 {[%emt 0:00:14]} 25. Rxe8+ {[%emt 0:00:50]} Rxe8 {[%emt 0:00:03]} 26. Qf3 {[%emt 0:00:00]} Qe6 {[%emt 0:00:23]} 27. Bd2 {[%emt 0:00:30]} (27. Qd1 $17) 27... Qxa2 $19 {[%emt 0:01:04]} 28. g3 {[%emt 0:00:01]} Qd5 {[%emt 0:00:00]} (28... Qxb2 $19 {is more deadly.} 29. Qd3 Qb3) 29. Bc1 {[%emt 0:00:24]} Bc5 {[%emt 0:00:47]} 30. h5 {[%emt 0:00:11]} (30. c4 $142 Qxf3 31. Rxf3) 30... Rf8 {[%emt 0:00:19]} (30... Qe6 $142 {Threatens to win with ...Qh3+.} 31. Kg2 a5) 31. Rxf8+ {[%emt 0:00:17]} Bxf8 {[%emt 0:00:00]} 32. Ke2 {[%emt 0:00:00]} Bd6 {[%emt 0:00:22]} (32... Qc4+ {simplifies} 33. Ke1 a5 34. Qe2 Qxe2+ 35. Kxe2 b5) 33. Qg4 {[%emt 0:00:12]} Kf7 {[%emt 0:00:09]} 34. c4 {[%emt 0:00:36]} Qe6+ {[%emt 0:00:06]} ({Black should play} 34... Qe5+ $1 $17 35. Kd3 Bc5 36. Qf3+ Kg8) 35. Qxe6+ $1 $11 {[%emt 0:00:01]} Kxe6 {[%emt 0:00:00]} 36. g4 {[%emt 0:00:00]} b5 {[%emt 0:00:02]} 37. Kd3 {[%emt 0:00:02]} a5 {[%emt 0:00:07]} 38. b3 {[%emt 0:00:41]} a4 {[%emt 0:00:16]} 39. bxa4 {[%emt 0:00:00]} bxa4 {[%emt 0:00:00]} 40. f3 $2 {[%emt 0:00:06][%mdl 8192]} (40. Bd2 $11) 40... Be7 $2 {[%emt 0:01:02]} (40... a3 $19 {aiming for ...a2.} 41. Kc2 a2) 41. Kc3 $2 {[%emt 0:00:08][%mdl 8192]} (41. Bf4 $11) 41... Ke5 $1 $19 {[%emt 0:00:05]} 42. Be3 {[%emt 0:00:02]} Ke6 $2 {[%emt 0:00:07]} (42... Bf6 $19 43. c5 Bg5 44. Bd4+ Kf4) 43. f4 $11 {[%emt 0:00:08]} Bd6 {[%emt 0:00:19]} 44. f5+ {[%emt 0:00:46] [#]} (44. Kb2 $11) 44... Ke5 $1 $17 {[%emt 0:00:54]} 45. Bd4+ {[%emt 0:00:05]} Kf4 {[%emt 0:00:01]} 46. Bxg7 {[%emt 0:00:01]} Kxg4 {[%emt 0:00:00]} 47. f6 $2 {[%emt 0:00:19][%mdl 8192] [#]} (47. Bxh6 $17 Bc5 (47... Kxf5 48. Bd2 $11) (47... Kxh5 48. Be3 $15) 48. Kb2) 47... Be5+ $1 $19 {[%emt 0:00:02]} (47... Kxh5 $2 48. f7 $18) 48. Kb4 {[%emt 0:00:01]} Kxh5 {[%emt 0:00:10]} 49. Bh8 {[%emt 0:00:16]} Kg6 {[%emt 0:00:05]} 50. f7 {[%emt 0:00:03]} Bg7 {[%emt 0:00:06]} (50... Bxh8 51. f8=Q (51. f8=R Bf6 $11) 51... Bd4 52. Qe8+ (52. Kxa4 c5 $18) 52... Kg5 53. Qd8+ (53. Qxc6 Be5 $18) (53. Kxa4 c5 $18) 53... Bf6 54. Qxc7 $18) 0-1

[Event "CCT Julius Baer-D1-Place 2024"]
[Site "Online"]
[Date "2024.09.26"]
[Round "1.2"]
[White "Oparin, Grigoriy"]
[Black "Bortnyk, Olexandr"]
[Result "1-0"]
[ECO "A50"]
[WhiteElo "2662"]
[BlackElo "2608"]
[Annotator "TA"]
[PlyCount "109"]
[EventDate "2024.09.25"]
[EventType "swiss"]
[EventCountry "NET"]
[SourceTitle "playchess.com"]
[Source "ChessBase"]
[SourceQuality "1"]
[TimeControl "600+2"]

{[%evp 11,109,25,27,13,14,16,31,15,41,25,16,8,30,10,22,36,62,-9,0,8,7,12,8,0,0,6,11,8,11,-21,0,-33,-28,-37,-51,-45,-65,-70,-64,-69,-68,-85,-80,-71,-61,-83,-74,-114,-95,-162,-161,-167,-123,-126,-123,-219,-206,-195,-102,-119,-64,-78,-72,-116,-115,-106,-106,-106,-39,-87,0,-53,-71,-63,-78,-123,0,0,0,0,0,0,0,0,0,0,0,0,108,108,29979,29980,29980,29981,29981,29982,29990,29991,29991,29992]} 1. d4 {[%emt 0:00:02]} Nf6 {[%emt 0:00:05]} 2. c4 {[%emt 0:00:02]} b6 {[%emt 0:00:00]} 3. Nf3 {[%emt 0:00:01]} Bb7 {[%emt 0:00:01]} 4. g3 {[%emt 0:00:00]} g6 {[%emt 0:00:00]} 5. Bg2 {[%emt 0:00:01]} Bg7 {[%emt 0:00:00]} 6. O-O {[%emt 0:00:01]} O-O {[%emt 0:00:01]} 7. Re1 {[%emt 0:00:02]} e6 {[%emt 0:00:05]} 8. Bf4 {[%emt 0:00:02]} Re8 {[%emt 0:00:10]} 9. Qc2 {[%emt 0:00:34] Weiß steht etwas besser.} Na6 {[%emt 0:00:48]} 10. Nc3 {[%emt 0:00:03]} d5 $1 {[%emt 0:00:03]} 11. cxd5 {[%emt 0:00:08]} exd5 {[%emt 0:00:08]} 12. Rad1 {[%emt 0:00:19]} c5 {[%emt 0:00:43]} 13. dxc5 {[%emt 0:01:01]} bxc5 {[%emt 0:00:09]} 14. e3 {[%emt 0:00:02] Weiß steht aktiver.} (14. e4 $14) 14... Qb6 {[%emt 0:00:30]} 15. a3 {[%emt 0:00:43][%cal Oe3e4]} Rad8 {[%emt 0:00:33]} 16. Be5 {[%emt 0:00:17]} Bc6 {[%emt 0:01:21] [#]} 17. b4 $1 {[%emt 0:02:02][%cal Ob4b5]} cxb4 {[%emt 0:00:54]} (17... d4 18. exd4) 18. Bd4 {[%emt 0:00:01]} Qc7 {[%emt 0:01:32]} 19. axb4 {[%emt 0:00:04]} Nxb4 {[%emt 0:00:00]} 20. Qd2 {[%emt 0:00:42]} Ne4 {[%emt 0:00:05]} 21. Qb2 {[%emt 0:00:02] Und Bxg7 würde nun gewinnen.} Bxd4 {[%emt 0:00:44]} 22. Nxd4 {[%emt 0:00:00]} a5 {[%emt 0:00:14]} 23. Nxe4 {[%emt 0:00:34]} dxe4 {[%emt 0:00:00]} 24. Qc3 {[%emt 0:00:01]} Qe5 {[%emt 0:00:34]} 25. Ra1 {[%emt 0:00:30]} Bd7 {[%emt 0:00:04]} 26. Qa3 {[%emt 0:00:25]} Ra8 {[%emt 0:00:09]} 27. Rec1 {[%emt 0:00:02]} h5 {[%emt 0:00:03]} 28. h4 {[%emt 0:00:15]} Nd3 {[%emt 0:00:40]} 29. Rc4 {[%emt 0:00:20]} Rec8 {[%emt 0:00:04]} 30. Qc3 {[%emt 0:01:03]} (30. Rxc8+ $17 Rxc8 (30... Bxc8 31. Qa4 $17) 31. Bf1) 30... Rxc4 $19 {[%emt 0:00:08]} 31. Qxc4 {[%emt 0:00:01]} Rc8 {[%emt 0:00:01]} 32. Qa6 {[%emt 0:00:01]} a4 {[%emt 0:00:09]} 33. Qb7 {[%emt 0:00:02]} (33. Qa7 $17 Rd8 34. Rb1) 33... Nc5 $1 {[%emt 0:00:04]} 34. Qa7 {[%emt 0:00:05]} Bg4 {[%emt 0:00:25]} ({Günstiger ist} 34... Qb8 $19 35. Qxb8 Rxb8) 35. Rc1 $17 {[%emt 0:00:24]} Qd5 {[%emt 0:00:09]} (35... Kg7 $17 36. Qa5 Bd7) 36. Qa5 $15 {[%emt 0:00:10]} Kh7 {[%emt 0:00:12]} 37. Bf1 {[%emt 0:00:09]} Qd6 {[%emt 0:00:05] Droht ...Nb3 und aus.} 38. Rc4 {[%emt 0:00:30]} Bd7 {[%emt 0:00:06]} 39. Qc3 {[%emt 0:00:05] Wehrt Nb3 ab} Rc7 {[%emt 0:00:05]} (39... Qb6 $17 40. Qa3 Kg8) 40. Be2 {[%emt 0:00:14]} (40. Qb4 $15 {ist eher angebracht.}) 40... Be6 {[%emt 0:00:04]} (40... Qb6 $17 41. Bf1 Kg8) 41. Nxe6 {[%emt 0:00:05]} (41. Nb5 $1 $11 Qc6 42. Nxc7 Bxc4 43. Bxc4 Qxc7 44. Bxf7 Qxf7 45. Qxc5) 41... Nxe6 {[%emt 0:00:00]} 42. Rxc7 {[%emt 0:00:09]} Qxc7 $11 {[%emt 0:00:01][%mdl 4096] Endspiel. KQB-KQN} ({Bitte nicht} 42... Nxc7 43. Qc4 $11) 43. Qb4 {[%emt 0:00:05] [#]} Qc1+ {[%emt 0:00:02]} ({Besser ist} 43... Nc5 $1 $17 44. Kg2 Qa7) 44. Kg2 {[%emt 0:00:00]} a3 {[%emt 0:00:00] Und jetzt ...a2 wäre schön.} 45. Bc4 {[%emt 0:00:01]} Nd8 {[%emt 0:00:19]} 46. Bd5 {[%emt 0:00:04]} Qd1 {[%emt 0:00:01]} 47. Qxe4 {[%emt 0:00:05]} Qd2 {[%emt 0:00:03] Droht stark ...a2.} 48. Qc4 {[%emt 0:00:01]} Kg8 {[%emt 0:00:01]} 49. e4 {[%emt 0:00:02]} Kg7 {[%emt 0:00:02] [#]} (49... Qa5 $11) 50. Qc7 $1 $16 {[%emt 0:00:05]} Kh7 $2 {[%emt 0:00:03][%mdl 8192]} 51. Qxd8 {[%emt 0:00:02] Weiß setzt Matt.} a2 {[%emt 0:00:01]} 52. Qa8 {[%emt 0:00:01]} a1=Q {[%emt 0:00:03]} 53. Qxa1 {[%emt 0:00:01]} g5 {[%emt 0:00:00][%cal Bg6g5,Bg5h4][%mdl 32]} 54. Qf6 {[%emt 0:00:02]} gxh4 {[%emt 0:00:01]} 55. Qxf7+ {[%emt 0:00:01] Weiß hat das Spiel gedreht.   Gewichteter Fehlerwert: Weiß=0.15 (sehr präzise) /Schwarz=0.27 (präzise) .  Verlustzug:     	---       	Schwarz=1     Fehler:       	Weiß=5     	Schwarz=6     Ungenau:       	Weiß=5     	Schwarz=2     OK:         	Weiß=16    	Schwarz=15    Bester:       	Weiß=3     	---        Stark:        	Weiß=1     	Schwarz=2} 1-0

[Event "CCT Julius Baer-D1-Place 2024"]
[Site "Online"]
[Date "2024.09.26"]
[Round "1.2"]
[White "Durarbayli, Vasif"]
[Black "Aronian, Levon"]
[Result "0-1"]
[ECO "C42"]
[WhiteElo "2626"]
[BlackElo "2729"]
[Annotator "TA"]
[PlyCount "124"]
[EventDate "2024.09.25"]
[EventType "swiss"]
[EventCountry "NET"]
[SourceTitle "playchess.com"]
[Source "ChessBase"]
[SourceQuality "1"]
[TimeControl "600+2"]

{[%evp 35,124,-18,-14,-9,0,0,0,-10,-10,-15,-11,-28,-9,-19,-12,-9,-9,-21,-17,-33,-8,-8,0,0,0,0,0,0,0,0,0,-3,-4,-4,0,0,0,-2,0,0,0,0,0,0,0,0,0,0,0,0,0,0,0,0,0,-8,0,0,0,0,0,0,0,0,0,-75,-87,-444,-305,-245,-43,-1981,-1518,-9469,-6544,-29970,-29972,-29970,-29973,-29977,-29978,-29978,-29979,-29974,-29975,-29975,-29975,-29979,-29980,-29979,-29979]} 1. e4 {[%emt 0:00:02]} e5 {[%emt 0:00:03]} 2. Nf3 {[%emt 0:00:01]} Nf6 {[%emt 0:00:01]} 3. Nxe5 {[%emt 0:00:02]} Nxe4 {[%emt 0:00:01]} 4. Qe2 {[%emt 0:00:02]} Qe7 {[%emt 0:00:02]} 5. Qxe4 {[%emt 0:00:00]} d6 {[%emt 0:00:00]} 6. d4 {[%emt 0:00:01]} dxe5 {[%emt 0:00:01]} 7. dxe5 {[%emt 0:00:00]} Nc6 {[%emt 0:00:02] C42: Petroff Defence: 3 Nxe5 and unusual White 3rd moves.} 8. Nc3 {[%emt 0:00:11]} Qxe5 {[%emt 0:00:01]} 9. Qxe5+ {[%emt 0:00:08]} Nxe5 {[%emt 0:00:02]} 10. Nb5 {[%emt 0:00:01]} Bb4+ {[%emt 0:00:03]} 11. Bd2 {[%emt 0:00:06]} Bxd2+ {[%emt 0:00:02]} 12. Kxd2 {[%emt 0:00:00]} Kd8 {[%emt 0:00:01]} 13. Nd4 $146 {[%emt 0:00:37]} ({Predecessor:} 13. f4 Ng4 14. Bc4 Bd7 15. Nc3 f5 16. Bd5 c6 17. Bf3 Nf6 {½-½ Vachier Lagrave,M (2731)-Nakamura,H (2788) CCT Final playoff rapid 2023 (2.2)}) 13... Bd7 {[%emt 0:00:22]} 14. Re1 {[%emt 0:00:35]} Re8 {[%emt 0:00:02]} 15. h4 {[%emt 0:00:07]} Ng4 {[%emt 0:00:34]} 16. Bc4 {[%emt 0:00:56]} Nxf2 {[%emt 0:00:23]} 17. Rxe8+ {[%emt 0:01:27]} Kxe8 {[%emt 0:00:05]} 18. Bxf7+ {[%emt 0:00:16]} Kxf7 {[%emt 0:00:02]} 19. Rf1 {[%emt 0:00:01]} c5 {[%emt 0:00:02]} 20. Rxf2+ {[%emt 0:00:01]} Ke7 {[%emt 0:00:01]} 21. Nf3 {[%emt 0:00:07]} Rf8 {[%emt 0:00:08]} 22. Re2+ {[%emt 0:00:09]} Kd6 {[%emt 0:00:07]} 23. Ng5 {[%emt 0:00:17]} h6 {[%emt 0:00:02]} 24. Ne4+ {[%emt 0:00:01]} Kc6 {[%emt 0:00:00]} 25. Ke3 {[%emt 0:00:18]} Re8 {[%emt 0:00:19]} 26. Rf2 {[%emt 0:00:01]} Be6 {[%emt 0:00:05]} 27. b3 {[%emt 0:00:58]} a5 {[%emt 0:00:06]} 28. c4 {[%emt 0:00:35]} a4 {[%emt 0:00:02]} 29. Kf4 {[%emt 0:00:10]} axb3 {[%emt 0:00:32]} 30. axb3 {[%emt 0:00:00]} Rf8+ {[%emt 0:00:15]} 31. Ke5 {[%emt 0:00:01]} Re8 {[%emt 0:00:10]} 32. Kf4 $1 {[%emt 0:00:08]} Rf8+ {[%emt 0:00:01]} 33. Ke3 {[%emt 0:00:01]} Rxf2 {[%emt 0:00:08]} 34. Nxf2 {[%emt 0:00:02]} b5 {[%emt 0:00:02]} 35. Kd3 {[%emt 0:00:03]} Bf5+ {[%emt 0:00:01]} 36. Ne4 {[%emt 0:00:11]} b4 {[%emt 0:00:16]} 37. Ke3 {[%emt 0:00:05]} Bg4 {[%emt 0:00:05]} 38. Nf2 {[%emt 0:00:25]} Bf5 {[%emt 0:00:02]} 39. Ne4 {[%emt 0:00:09]} Bg4 {[%emt 0:00:01]} 40. Kd2 {[%emt 0:00:00]} Bf5 {[%emt 0:00:11]} 41. Ng3 {[%emt 0:00:09]} Bg4 {[%emt 0:00:01]} 42. Kc2 {[%emt 0:00:42]} Kd6 {[%emt 0:00:06]} 43. Ne4+ {[%emt 0:00:02]} Kc6 {[%emt 0:00:00]} 44. Kc1 {[%emt 0:00:07]} Bf5 {[%emt 0:00:05]} 45. Ng3 {[%emt 0:00:01]} Bg4 {[%emt 0:00:01]} 46. Kd2 {[%emt 0:00:01]} Kd6 {[%emt 0:00:05]} 47. Ne4+ {[%emt 0:00:01]} Kc6 {[%emt 0:00:01]} 48. Nf2 {[%emt 0:00:00]} Bf5 {[%emt 0:00:09]} 49. g4 {[%emt 0:00:01]} Bb1 {[%emt 0:00:03]} 50. Nd1 {[%emt 0:00:32]} (50. h5 $11) 50... Kd6 $17 {[%emt 0:00:11]} 51. Ne3 $2 {[%emt 0:00:11][%mdl 8192]} (51. g5 $17 {is a better chance.}) 51... Ke5 $19 {[%emt 0:00:01]} 52. Nd5 {[%emt 0:00:01] [#]} Be4 $2 {[%emt 0:00:05]} ({Better is} 52... g6 $1 $19 53. Nb6 Kf4) 53. Nc7 $2 {[%emt 0:00:06][%mdl 8192]} (53. Nb6 $15) 53... g5 $19 {[%emt 0:00:08]} 54. hxg5 {[%emt 0:00:38]} hxg5 {[%emt 0:00:00]} 55. Ne8 {[%emt 0:00:14]} Bf3 {[%emt 0:00:03]} 56. Nc7 {[%emt 0:00:09]} Bxg4 {[%emt 0:00:01]} 57. Nd5 {[%emt 0:00:05]} Bf3 {[%emt 0:00:04]} 58. Nb6 {[%emt 0:00:04]} Bc6 {[%emt 0:00:05]} 59. Ke3 {[%emt 0:00:01]} g4 {[%emt 0:00:02]} 60. Kf2 {[%emt 0:00:02]} Kd4 {[%emt 0:00:06]} 61. Kg3 {[%emt 0:00:02]} Bf3 {[%emt 0:00:01]} 62. Nd7 {[%emt 0:00:05]} Bd1 {[%emt 0:00:02]} 0-1

[Event "CCT Julius Baer-D1-Place 2024"]
[Site "Online"]
[Date "2024.09.26"]
[Round "1.2"]
[White "Martinez Alcantara, Jose Eduardo"]
[Black "Bok, Benjamin"]
[Result "1-0"]
[ECO "B50"]
[WhiteElo "2607"]
[BlackElo "2596"]
[Annotator "RC"]
[PlyCount "139"]
[EventDate "2024.09.25"]
[EventType "swiss"]
[EventCountry "NET"]
[SourceTitle "playchess.com"]
[Source "ChessBase"]
[SourceQuality "1"]
[TimeControl "600+2"]

1. e4 {[%emt 0:00:03]} c5 {[%emt 0:00:04]} 2. Nf3 {[%emt 0:00:01]} d6 {[%emt 0:00:00]} 3. c3 {[%emt 0:00:06]} Nf6 {[%emt 0:00:02]} 4. h3 {[%emt 0:00:01]} Nc6 {[%emt 0:00:05]} 5. Bd3 {[%emt 0:00:01]} e5 {[%emt 0:00:12]} 6. Bc2 {[%emt 0:00:02]} Be7 {[%emt 0:00:02]} 7. d3 {[%emt 0:00:05]} h6 {[%emt 0:00:11]} 8. Nbd2 {[%emt 0:00:01]} O-O {[%emt 0:00:04]} 9. O-O {[%emt 0:00:01]} Re8 {[%emt 0:00:04]} 10. Re1 {[%emt 0:00:02]} Bf8 {[%emt 0:00:03]} 11. a3 {[%emt 0:00:18]} a6 {[%emt 0:00:37]} 12. b4 {[%emt 0:00:08]} b5 {[%emt 0:01:28]} 13. Nb3 {[%emt 0:00:12]} a5 {[%emt 0:01:36]} 14. bxc5 {[%emt 0:00:19]} dxc5 {[%emt 0:00:00]} 15. Be3 {[%emt 0:00:05]} Nd7 {[%emt 0:00:03]} 16. Nbd2 {[%emt 0:01:48]} Nb6 {[%emt 0:00:14]} 17. c4 {[%emt 0:03:18]} b4 {[%emt 0:00:29]} 18. axb4 {[%emt 0:00:00]} cxb4 {[%emt 0:00:38]} 19. c5 {[%emt 0:00:07]} Nd7 {[%emt 0:00:01]} 20. Ba4 {[%emt 0:00:00]} Qc7 {[%emt 0:00:18]} 21. Rc1 {[%emt 0:00:02]} Ba6 {[%emt 0:00:08]} 22. Nb3 {[%emt 0:00:04]} Ndb8 {[%emt 0:00:54]} 23. Qc2 {[%emt 0:00:09]} Rd8 {[%emt 0:00:27]} 24. Red1 {[%emt 0:00:01]} Qb7 {[%emt 0:00:11]} 25. d4 {[%emt 0:00:10]} Bb5 {[%emt 0:00:41]} 26. Bxb5 {[%emt 0:00:05]} Qxb5 {[%emt 0:00:00]} 27. d5 {[%emt 0:00:03]} a4 {[%emt 0:00:06]} 28. Nbd2 {[%emt 0:01:00]} b3 {[%emt 0:00:54]} 29. Qc4 {[%emt 0:00:06]} Qxc4 {[%emt 0:00:03]} 30. Nxc4 {[%emt 0:00:01]} a3 {[%emt 0:00:07]} 31. Rc3 {[%emt 0:00:58]} a2 {[%emt 0:00:33]} 32. Ra1 {[%emt 0:00:01]} Nb4 {[%emt 0:00:10]} 33. Ne1 {[%emt 0:00:02]} N8a6 {[%emt 0:00:24]} 34. d6 {[%emt 0:00:01]} f6 {[%emt 0:00:18]} 35. Rxb3 {[%emt 0:00:04]} Rac8 {[%emt 0:00:02]} 36. Nb6 {[%emt 0:00:47]} Rc6 {[%emt 0:00:02]} 37. Nd5 {[%emt 0:00:00]} Nxd5 {[%emt 0:00:02]} 38. exd5 {[%emt 0:00:00]} Rxc5 {[%emt 0:00:01]} 39. Bxc5 {[%emt 0:00:11]} Nxc5 {[%emt 0:00:00]} 40. Rb5 {[%emt 0:00:01]} Bxd6 {[%emt 0:00:01]} 41. Rxa2 {[%emt 0:00:01]} e4 {[%emt 0:00:00]} 42. g3 {[%emt 0:00:06]} f5 {[%emt 0:00:02]} 43. Rc2 {[%emt 0:00:03]} Nd7 {[%emt 0:00:02]} 44. Ng2 {[%emt 0:00:04]} Ne5 {[%emt 0:00:01]} 45. Ne3 {[%emt 0:00:02]} Nf3+ {[%emt 0:00:02]} 46. Kf1 {[%emt 0:00:04]} Ra8 {[%emt 0:00:00]} 47. Rc1 {[%emt 0:00:18]} g6 {[%emt 0:00:02]} 48. Rb6 {[%emt 0:00:03]} Bc5 {[%emt 0:00:07]} 49. Rxg6+ {[%emt 0:00:12]} Kf7 {[%emt 0:00:00]} 50. Rc6 {[%emt 0:00:00]} Bxe3 {[%emt 0:00:03]} 51. fxe3 {[%emt 0:00:01]} Ra2 {[%emt 0:00:03]} 52. R6c2 {[%emt 0:00:06]} Ra3 {[%emt 0:00:00]} 53. Kf2 {[%emt 0:00:03]} Rd3 {[%emt 0:00:02]} 54. g4 {[%emt 0:00:04]} fxg4 {[%emt 0:00:02]} 55. hxg4 {[%emt 0:00:00]} Ne5 {[%emt 0:00:00]} 56. Kg3 {[%emt 0:00:09]} Rxd5 {[%emt 0:00:04]} 57. Rf1+ {[%emt 0:00:06]} Kg6 {[%emt 0:00:02]} 58. Rf5 {[%emt 0:00:04]} Ra5 {[%emt 0:00:04]} 59. Rb2 {[%emt 0:00:06]} Nc4 {[%emt 0:00:03]} 60. Rxa5 {[%emt 0:00:01]} Nxb2 {[%emt 0:00:01]} 61. Kf4 {[%emt 0:00:03]} Nd3+ {[%emt 0:00:02]} 62. Kxe4 {[%emt 0:00:01]} Nf2+ {[%emt 0:00:01]} 63. Kf3 {[%emt 0:00:01]} Nd3 {[%emt 0:00:02]} 64. Rd5 {[%emt 0:00:00]} Nb4 {[%emt 0:00:03]} 65. Rd4 {[%emt 0:00:01]} Nc2 {[%emt 0:00:01]} 66. Rc4 {[%emt 0:00:01]} Ne1+ {[%emt 0:00:01]} 67. Ke2 {[%emt 0:00:05]} Ng2 {[%emt 0:00:01]} 68. Rc5 {[%emt 0:00:02]} Nh4 {[%emt 0:00:03]} 69. Rh5 {[%emt 0:00:01]} Ng2 {[%emt 0:00:04]} 70. Rh2 {[%emt 0:00:02]} 1-0

[Event "CCT Julius Baer-D1-Place 2024"]
[Site "Online"]
[Date "2024.09.26"]
[Round "1.2"]
[White "Madaminov, Mukhiddin"]
[Black "So, Wesley"]
[Result "0-1"]
[ECO "C58"]
[WhiteElo "2512"]
[BlackElo "2752"]
[Annotator "TA"]
[PlyCount "70"]
[EventDate "2024.09.25"]
[EventType "swiss"]
[EventCountry "NET"]
[SourceTitle "playchess.com"]
[Source "ChessBase"]
[SourceQuality "1"]
[TimeControl "600+2"]

{[%evp 14,69,29,26,33,22,19,16,25,13,2,13,34,0,0,4,64,52,72,60,46,56,39,19,18,11,88,91,110,104,96,66,117,127,129,125,126,29,22,0,0,20,41,54,65,46,74,81,81,81,81,86,87,-652,-610,-29996,-29997,-29999]} 1. e4 {[%emt 0:00:05]} e5 {[%emt 0:00:07]} 2. Nf3 {[%emt 0:00:02]} Nc6 {[%emt 0:00:02]} 3. Bc4 {[%emt 0:00:01]} Nf6 {[%emt 0:00:19][%cal Bg8f6,Bf6d5,Bd5f4,Bf4d3][%mdl 32]} 4. Ng5 {[%emt 0:00:02]} d5 {[%emt 0:00:02]} 5. exd5 {[%emt 0:00:01]} Na5 {[%emt 0:00:00]} 6. Bb5+ {[%emt 0:00:01]} c6 {[%emt 0:00:01]} 7. dxc6 {[%emt 0:00:01]} bxc6 {[%emt 0:00:00]} 8. Bd3 {[%emt 0:00:02]} Nd5 {[%emt 0:00:02]} 9. Nf3 {[%emt 0:00:02]} (9. Nxh7 $2 Nf4 10. Be4 Rxh7 $19) 9... Bd6 {[%emt 0:00:01]} 10. O-O {[%emt 0:00:01]} Nf4 {[%emt 0:00:04] The position is equal.} 11. Nc3 {[%emt 0:00:04]} Nxd3 {[%emt 0:00:33]} 12. cxd3 {[%emt 0:00:03][%cal Ob2b4]} O-O {[%emt 0:00:00]} 13. Ne4 {[%emt 0:00:02]} Bc7 {[%emt 0:00:41]} 14. Qc2 {[%emt 0:00:04] With the idea b4.} Bg4 {[%emt 0:00:22]} (14... c5 $11) 15. b4 $14 {[%emt 0:02:11]} Bxf3 {[%emt 0:00:20]} 16. gxf3 {[%emt 0:00:00]} Nb7 {[%emt 0:00:01]} 17. Qxc6 {[%emt 0:00:21]} Nd6 {[%emt 0:00:32]} 18. Ng3 {[%emt 0:01:46]} Rb8 {[%emt 0:00:38][%cal Ob8b6]} 19. Bb2 {[%emt 0:00:41][%cal Oa1c1]} Nb5 {[%emt 0:00:24]} (19... Rb6 $11 20. Qc2 (20. Qd5 Rb5 $14) 20... Rxb4) 20. Rac1 $16 {[%emt 0:00:34] a4 would now be deadly.} Rb6 {[%emt 0:01:07]} 21. Qc4 {[%emt 0:00:05] Black must now prevent a4.} Bb8 {[%emt 0:00:18]} 22. a4 {[%emt 0:00:43]} Nd4 {[%emt 0:00:01]} ({Black should try} 22... Nd6 $1 $14 23. Qd5 Rxb4 24. Bxe5 (24. Qxe5 Ne8 $14) 24... Nb7 25. Qxd8 Nxd8 26. Bxb8 Rxb8) 23. Bxd4 {[%emt 0:00:10]} exd4 {[%emt 0:00:00]} 24. Rfe1 {[%emt 0:00:05]} Qd7 {[%emt 0:00:55][%cal Od7h3] [#]} 25. Re4 {[%emt 0:01:55]} (25. Qc5 $1 $16) 25... Qh3 $1 $11 {[%emt 0:00:23]} 26. Rg4 {[%emt 0:01:00]} Rh6 {[%emt 0:00:29]} 27. Qxd4 {[%emt 0:00:01]} g6 {[%emt 0:00:09] Dancing on a razor blade.} 28. Qe3 {[%emt 0:00:37]} Rh5 {[%emt 0:01:30]} 29. Rcc4 $1 {[%emt 0:00:03]} (29. Nxh5 $2 Bxh2+ 30. Kh1 Bf4+ (30... Qxh5 $2 31. Qg5 $18) 31. Kg1 Bxe3 32. dxe3 Qxh5 $19) 29... a6 {[%emt 0:00:55][%cal Ob8d6] [#]} 30. a5 $1 {[%emt 0:00:10]} ({But not} 30. Nxh5 $2 Bxh2+ 31. Kh1 Bf4+ (31... Qxh5 $2 {is the wrong capture.} 32. Rh4 $18) 32. Kg1 Qh2+ (32... Bxe3 $2 33. Nf6+ Kg7 34. dxe3 $19) 33. Kf1 Bxe3 34. Nf6+ Kg7 35. dxe3 Qh1+ (35... Kxf6 $2 {perishes.} 36. Rcf4+ Ke6 37. Rh4 $18) 36. Ke2 Kxf6 $19) 30... Qxh2+ {[%emt 0:00:21]} 31. Kf1 {[%emt 0:00:01]} Bxg3 {[%emt 0:00:01]} 32. Rxg3 {[%emt 0:00:00]} Qh1+ {[%emt 0:00:04]} 33. Ke2 $2 {[%emt 0:00:00][%mdl 8192]} (33. Rg1 $16 Qh3+ 34. Ke2) 33... Qa1 $19 {[%emt 0:00:11] ( -> ...Rh1)} 34. Rc5 {[%emt 0:00:02]} Rh1 {[%emt 0:00:02][%csl Ga1][%cal Rh1e1]} 35. f4 {[%emt 0:00:14]} Qd1# {[%emt 0:00:33] Weighted Error Value: White=0.51/Black=0.13 (very precise) .  Loses game:     	White=1     	---        Mistake:       	White=1     	Black=3      Inaccurate:     	White=3     	Black=1      OK:         	White=7     	Black=11     Best:        	White=4     	Black=1      Strong:       	White=2     	Black=1} 0-1